[Event "Titled Tuesday Blitz November 08 Early 2022"]
[White "Moroni, Luca Jr"]
[Black "Lorenzo De La Riva, Lazaro"]
[WhiteFideId "865834"]
[BlackFideId "2268809"]
[WhiteElo "2573"]
[BlackElo "2294"]
[Result "1-0"]
[Round "01"]
[TimeControl "180+1"]
[Date "2022.11.09"]
[WhiteClock "0:02:11"]
[BlackClock "0:00:59"]

1. Nc3 {[%clk 0:03:00]}  Nf6 {[%clk 0:02:53]} 2. e4 {[%clk 0:03:00]}  Nc6 {[%clk 0:02:53]} 3. d4 {[%clk 0:02:58]}  e5 {[%clk 0:02:50]} 4. dxe5 {[%clk 0:02:54]}  Nxe5 {[%clk 0:02:50]} 5. Nf3 {[%clk 0:02:55]}  Nxf3+ {[%clk 0:02:44]} 6. Qxf3 {[%clk 0:02:56]}  Bc5 {[%clk 0:02:40]} 7. Bg5 {[%clk 0:02:54]}  h6 {[%clk 0:02:25]} 8. Bxf6 {[%clk 0:02:53]}  Qxf6 {[%clk 0:02:26]} 9. Qxf6 {[%clk 0:02:52]}  gxf6 {[%clk 0:02:26]} 10. Nd5 {[%clk 0:02:52]}  Bb6 {[%clk 0:02:17]} 11. Nxf6+ {[%clk 0:02:49]}  Kf8 {[%clk 0:02:17]} 12. Nd5 {[%clk 0:02:49]}  d6 {[%clk 0:02:15]} 13. Nxb6 {[%clk 0:02:45]}  axb6 {[%clk 0:02:16]} 14. f3 {[%clk 0:02:45]}  Be6 {[%clk 0:02:16]} 15. a3 {[%clk 0:02:45]}  Ke7 {[%clk 0:02:14]} 16. Kf2 {[%clk 0:02:44]}  h5 {[%clk 0:02:12]} 17. Rd1 {[%clk 0:02:44]}  Ra5 {[%clk 0:02:10]} 18. Be2 {[%clk 0:02:43]}  Rc5 {[%clk 0:02:09]} 19. c3 {[%clk 0:02:43]}  Rg8 {[%clk 0:02:05]} 20. g3 {[%clk 0:02:42]}  Bh3 {[%clk 0:02:03]} 21. Rhg1 {[%clk 0:02:42]}  Ke6 {[%clk 0:01:47]} 22. f4 {[%clk 0:02:42]}  Bg4 {[%clk 0:01:46]} 23. Ke3 {[%clk 0:02:34]}  Bxe2 {[%clk 0:01:45]} 24. Kxe2 {[%clk 0:02:35]}  Rb5 {[%clk 0:01:39]} 25. Rd2 {[%clk 0:02:34]}  h4 {[%clk 0:01:36]} 26. Kf3 {[%clk 0:02:33]}  f5 {[%clk 0:01:26]} 27. exf5+ {[%clk 0:02:31]}  Kxf5 {[%clk 0:01:27]} 28. g4+ {[%clk 0:02:30]}  Kf6 {[%clk 0:01:27]} 29. Re1 {[%clk 0:02:30]}  Rg7 {[%clk 0:01:20]} 30. h3 {[%clk 0:02:28]}  Re7 {[%clk 0:01:19]} 31. g5+ {[%clk 0:02:26]}  Kf7 {[%clk 0:01:17]} 32. Rxe7+ {[%clk 0:02:27]}  Kxe7 {[%clk 0:01:17]} 33. Kg4 {[%clk 0:02:28]}  Ke6 {[%clk 0:01:15]} 34. Re2+ {[%clk 0:02:28]}  Kf7 {[%clk 0:01:15]} 35. Kxh4 {[%clk 0:02:27]}  Kg6 {[%clk 0:01:14]} 36. Kg4 {[%clk 0:02:26]}  d5 {[%clk 0:01:08]} 37. h4 {[%clk 0:02:24]}  c5 {[%clk 0:01:06]} 38. h5+ {[%clk 0:02:21]}  Kf7 {[%clk 0:01:07]} 39. h6 {[%clk 0:02:19]}  d4 {[%clk 0:01:06]} 40. f5 {[%clk 0:02:17]}  dxc3 {[%clk 0:01:00]} 41. bxc3 {[%clk 0:02:18]}  Rb1 {[%clk 0:00:59]} 42. g6+ {[%clk 0:02:17]}  Kf6 {[%clk 0:00:59]} 43. Re6# {[%clk 0:02:11]} 1-0


[Site "https://www.chess.com"]

[Event "Titled Tuesday Blitz November 08 Early 2022"]
[White "Nakamura, Hikaru"]
[Black "Salman, Pavel"]
[WhiteFideId "2016192"]
[BlackFideId "24153753"]
[WhiteElo "2909"]
[BlackElo "2187"]
[Result "1-0"]
[Round "01"]
[TimeControl "180+1"]
[Date "2022.11.08"]
[WhiteClock "0:00:56"]
[BlackClock "0:00:03"]

1. Nf3 {[%clk 0:02:54]}  c5 {[%clk 0:03:00]} 2. g3 {[%clk 0:02:55]}  Nf6 {[%clk 0:03:00]} 3. Bg2 {[%clk 0:02:54]}  b6 {[%clk 0:02:59]} 4. Ne5 {[%clk 0:02:52]}  d5 {[%clk 0:02:59]} 5. c4 {[%clk 0:02:52]}  e6 {[%clk 0:02:47]} 6. cxd5 {[%clk 0:02:46]}  exd5 {[%clk 0:02:45]} 7. d4 {[%clk 0:02:43]}  Bd6 {[%clk 0:02:33]} 8. Qa4+ {[%clk 0:02:40]}  Bd7 {[%clk 0:02:30]} 9. Nxd7 {[%clk 0:02:39]}  Qxd7 {[%clk 0:02:30]} 10. Qxd7+ {[%clk 0:02:24]}  Nbxd7 {[%clk 0:02:31]} 11. Be3 {[%clk 0:02:24]}  Ne4 {[%clk 0:02:12]} 12. Nd2 {[%clk 0:02:01]}  Ndf6 {[%clk 0:01:51]} 13. Nxe4 {[%clk 0:01:58]}  Nxe4 {[%clk 0:01:42]} 14. Bxe4 {[%clk 0:01:53]}  dxe4 {[%clk 0:01:42]} 15. dxc5 {[%clk 0:01:53]}  Bxc5 {[%clk 0:01:41]} 16. Bxc5 {[%clk 0:01:54]}  bxc5 {[%clk 0:01:41]} 17. Rc1 {[%clk 0:01:53]}  Rc8 {[%clk 0:01:38]} 18. Rc4 {[%clk 0:01:53]}  O-O {[%clk 0:01:18]} 19. Rxe4 {[%clk 0:01:51]}  Rfd8 {[%clk 0:01:15]} 20. Rc4 {[%clk 0:01:41]}  Rd5 {[%clk 0:01:04]} 21. f3 {[%clk 0:01:29]}  g6 {[%clk 0:00:58]} 22. Rc2 {[%clk 0:01:16]}  Rcd8 {[%clk 0:00:25]} 23. Kf2 {[%clk 0:01:16]}  Rd2 {[%clk 0:00:26]} 24. Rhc1 {[%clk 0:01:15]}  Kg7 {[%clk 0:00:24]} 25. Ke1 {[%clk 0:01:04]}  Rxc2 {[%clk 0:00:22]} 26. Rxc2 {[%clk 0:01:05]}  Rd5 {[%clk 0:00:23]} 27. Rc4 {[%clk 0:01:05]}  f5 {[%clk 0:00:22]} 28. Ra4 {[%clk 0:01:03]}  Rd7 {[%clk 0:00:22]} 29. b3 {[%clk 0:01:02]}  Kf6 {[%clk 0:00:22]} 30. Ra5 {[%clk 0:01:02]}  Rc7 {[%clk 0:00:22]} 31. Kd2 {[%clk 0:01:03]}  Rd7+ {[%clk 0:00:18]} 32. Ke1 {[%clk 0:00:59]}  Re7 {[%clk 0:00:18]} 33. Rxc5 {[%clk 0:00:59]}  h5 {[%clk 0:00:17]} 34. h4 {[%clk 0:00:58]}  Rd7 {[%clk 0:00:15]} 35. Ra5 {[%clk 0:00:58]}  Rc7 {[%clk 0:00:13]} 36. b4 {[%clk 0:00:58]}  Rb7 {[%clk 0:00:13]} 37. a3 {[%clk 0:00:59]}  g5 {[%clk 0:00:12]} 38. Ra6+ {[%clk 0:00:58]}  Ke5 {[%clk 0:00:12]} 39. hxg5 {[%clk 0:00:59]}  Rg7 {[%clk 0:00:10]} 40. f4+ {[%clk 0:00:59]}  Kd4 {[%clk 0:00:10]} 41. Kf2 {[%clk 0:00:58]}  Kc3 {[%clk 0:00:09]} 42. b5 {[%clk 0:00:58]}  Kc4 {[%clk 0:00:07]} 43. a4 {[%clk 0:00:57]}  Kc5 {[%clk 0:00:07]} 44. Rf6 {[%clk 0:00:57]}  Kb4 {[%clk 0:00:07]} 45. Rxf5 {[%clk 0:00:57]}  Kxa4 {[%clk 0:00:08]} 46. e4 {[%clk 0:00:57]}  Kb4 {[%clk 0:00:07]} 47. Kf3 {[%clk 0:00:57]}  Kc4 {[%clk 0:00:07]} 48. Kg2 {[%clk 0:00:55]}  Re7 {[%clk 0:00:07]} 49. Re5 {[%clk 0:00:55]}  Rg7 {[%clk 0:00:05]} 50. Kh3 {[%clk 0:00:55]}  Kd4 {[%clk 0:00:03]} 51. Kh4 {[%clk 0:00:55]}  Ke3 {[%clk 0:00:03]} 52. Kxh5 {[%clk 0:00:56]} 1-0


[Site "https://www.chess.com"]

[Event "Titled Tuesday Blitz November 08 Early 2022"]
[White "Napoli, Nicolo"]
[Black "Goryachkina, Aleksandra"]
[WhiteFideId "813702"]
[BlackFideId "4147103"]
[WhiteElo "2311"]
[BlackElo "2484"]
[Result "0-1"]
[Round "01"]
[TimeControl "180+1"]
[Date "2022.11.09"]
[WhiteClock "0:00:16"]
[BlackClock "0:00:17"]

1. e4 {[%clk 0:02:57]}  c5 {[%clk 0:02:59]} 2. c3 {[%clk 0:02:57]}  d5 {[%clk 0:02:58]} 3. exd5 {[%clk 0:02:58]}  Qxd5 {[%clk 0:02:58]} 4. d4 {[%clk 0:02:59]}  Nf6 {[%clk 0:02:58]} 5. Nf3 {[%clk 0:03:00]}  Bg4 {[%clk 0:02:57]} 6. Be2 {[%clk 0:02:59]}  e6 {[%clk 0:02:57]} 7. c4 {[%clk 0:02:55]}  Qd8 {[%clk 0:02:48]} 8. O-O {[%clk 0:02:49]}  cxd4 {[%clk 0:02:39]} 9. Nxd4 {[%clk 0:02:47]}  Bxe2 {[%clk 0:02:36]} 10. Nxe2 {[%clk 0:02:48]}  Nc6 {[%clk 0:02:35]} 11. Nbc3 {[%clk 0:02:48]}  Be7 {[%clk 0:02:27]} 12. Qb3 {[%clk 0:02:39]}  b6 {[%clk 0:02:10]} 13. Rd1 {[%clk 0:02:35]}  Qc8 {[%clk 0:02:07]} 14. Bg5 {[%clk 0:02:24]}  O-O {[%clk 0:02:05]} 15. Qa4 {[%clk 0:02:10]}  Ne5 {[%clk 0:01:59]} 16. b3 {[%clk 0:01:59]}  Qb7 {[%clk 0:01:44]} 17. Qb5 {[%clk 0:01:34]}  Ng6 {[%clk 0:01:42]} 18. Nd4 {[%clk 0:01:31]}  h6 {[%clk 0:01:37]} 19. Be3 {[%clk 0:01:26]}  Rac8 {[%clk 0:01:27]} 20. Nf3 {[%clk 0:01:15]}  Rfd8 {[%clk 0:01:12]} 21. h3 {[%clk 0:01:08]}  Rxd1+ {[%clk 0:00:52]} 22. Rxd1 {[%clk 0:01:08]}  Bc5 {[%clk 0:00:52]} 23. Bxc5 {[%clk 0:00:27]}  Rxc5 {[%clk 0:00:53]} 24. Qb4 {[%clk 0:00:26]}  Nf4 {[%clk 0:00:50]} 25. Kh2 {[%clk 0:00:20]}  N6h5 {[%clk 0:00:31]} 26. Nb5 {[%clk 0:00:20]}  Nxg2 {[%clk 0:00:23]} 27. Kxg2 {[%clk 0:00:18]}  Rg5+ {[%clk 0:00:22]} 28. Kf1 {[%clk 0:00:15]}  Qxf3 {[%clk 0:00:22]} 29. Rd8+ {[%clk 0:00:15]}  Kh7 {[%clk 0:00:22]} 30. Qd2 {[%clk 0:00:16]}  Nf4 {[%clk 0:00:17]} 0-1


[Site "https://www.chess.com"]

[Event "Titled Tuesday Blitz November 08 Early 2022"]
[White "Nugumanov, Bakhtiyar"]
[Black "Mendez Fortes, Eduardo Jesus"]
[WhiteFideId "13701797"]
[BlackFideId "3502376"]
[WhiteElo "2287"]
[BlackElo "2307"]
[Result "0-1"]
[Round "01"]
[TimeControl "180+1"]
[Date "2022.11.09"]
[WhiteClock "0:00:05"]
[BlackClock "0:00:33"]

1. Nf3 {[%clk 0:02:54]}  d5 {[%clk 0:02:59]} 2. g3 {[%clk 0:02:54]}  Nf6 {[%clk 0:02:57]} 3. Bg2 {[%clk 0:02:54]}  Bf5 {[%clk 0:02:55]} 4. c4 {[%clk 0:02:55]}  e6 {[%clk 0:02:54]} 5. O-O {[%clk 0:02:54]}  c6 {[%clk 0:02:53]} 6. cxd5 {[%clk 0:02:54]}  exd5 {[%clk 0:02:52]} 7. d3 {[%clk 0:02:54]}  Be7 {[%clk 0:02:50]} 8. Qb3 {[%clk 0:02:54]}  Qc8 {[%clk 0:02:47]} 9. Nc3 {[%clk 0:02:37]}  Nbd7 {[%clk 0:02:43]} 10. Nd4 {[%clk 0:01:50]}  Nc5 {[%clk 0:02:33]} 11. Qc2 {[%clk 0:01:37]}  Bh3 {[%clk 0:02:28]} 12. e4 {[%clk 0:01:33]}  Bxg2 {[%clk 0:02:26]} 13. Kxg2 {[%clk 0:01:33]}  O-O {[%clk 0:02:20]} 14. e5 {[%clk 0:01:30]}  Nfd7 {[%clk 0:02:17]} 15. f4 {[%clk 0:01:30]}  f6 {[%clk 0:02:11]} 16. Nf5 {[%clk 0:01:19]}  Re8 {[%clk 0:02:01]} 17. d4 {[%clk 0:01:18]}  Ne6 {[%clk 0:01:58]} 18. Be3 {[%clk 0:01:13]}  Bf8 {[%clk 0:01:50]} 19. g4 {[%clk 0:01:03]}  fxe5 {[%clk 0:01:42]} 20. fxe5 {[%clk 0:00:58]}  c5 {[%clk 0:01:37]} 21. Rad1 {[%clk 0:00:29]}  cxd4 {[%clk 0:01:34]} 22. Nxd4 {[%clk 0:00:30]}  Nxe5 {[%clk 0:01:31]} 23. h3 {[%clk 0:00:17]}  Nc4 {[%clk 0:01:28]} 24. Bf2 {[%clk 0:00:14]}  Nf4+ {[%clk 0:01:25]} 25. Kh2 {[%clk 0:00:13]}  Bd6 {[%clk 0:01:24]} 26. Nf5 {[%clk 0:00:13]}  Bc7 {[%clk 0:01:17]} 27. Bg3 {[%clk 0:00:13]}  Ne6 {[%clk 0:01:08]} 28. Nxd5 {[%clk 0:00:13]}  Bxg3+ {[%clk 0:01:08]} 29. Nxg3 {[%clk 0:00:13]}  Ne5 {[%clk 0:00:58]} 30. Qf5 {[%clk 0:00:13]}  Nc5 {[%clk 0:00:52]} 31. Qg5 {[%clk 0:00:13]}  Ng6 {[%clk 0:00:46]} 32. Nf5 {[%clk 0:00:13]}  Qb8+ {[%clk 0:00:42]} 33. Kh1 {[%clk 0:00:12]}  Ne4 {[%clk 0:00:42]} 34. Nfe7+ {[%clk 0:00:09]}  Nxe7 {[%clk 0:00:37]} 35. Nxe7+ {[%clk 0:00:10]}  Kh8 {[%clk 0:00:34]} 36. Qe5 {[%clk 0:00:05]}  Qxe5 {[%clk 0:00:33]} 0-1


[Site "https://www.chess.com"]

[Event "Titled Tuesday Blitz November 08 Early 2022"]
[White "Nurmanova, Alua"]
[Black "Roque Sola, Gisela"]
[WhiteFideId "13729390"]
[BlackFideId "5120241"]
[WhiteElo "2120"]
[BlackElo "1961"]
[Result "0-1"]
[Round "01"]
[TimeControl "180+1"]
[Date "2022.11.09"]
[WhiteClock "0:00:25"]
[BlackClock "0:01:51"]

1. e4 {[%clk 0:03:00]}  c5 {[%clk 0:02:56]} 2. Nf3 {[%clk 0:03:00]}  Nc6 {[%clk 0:02:55]} 3. d4 {[%clk 0:03:01]}  cxd4 {[%clk 0:02:56]} 4. Nxd4 {[%clk 0:03:01]}  Nf6 {[%clk 0:02:57]} 5. Nc3 {[%clk 0:03:00]}  e5 {[%clk 0:02:56]} 6. Ndb5 {[%clk 0:03:00]}  d6 {[%clk 0:02:56]} 7. Bg5 {[%clk 0:02:59]}  a6 {[%clk 0:02:55]} 8. Na3 {[%clk 0:02:56]}  b5 {[%clk 0:02:56]} 9. Nd5 {[%clk 0:02:54]}  Be7 {[%clk 0:02:56]} 10. Bxf6 {[%clk 0:02:55]}  Bxf6 {[%clk 0:02:57]} 11. c3 {[%clk 0:02:52]}  Bg5 {[%clk 0:02:49]} 12. Bd3 {[%clk 0:02:29]}  Ne7 {[%clk 0:02:46]} 13. Nxe7 {[%clk 0:02:26]}  Qxe7 {[%clk 0:02:45]} 14. c4 {[%clk 0:02:26]}  b4 {[%clk 0:02:22]} 15. Qa4+ {[%clk 0:02:11]}  Bd7 {[%clk 0:02:22]} 16. Qxb4 {[%clk 0:02:12]}  O-O {[%clk 0:02:21]} 17. O-O {[%clk 0:02:12]}  f5 {[%clk 0:02:11]} 18. Nc2 {[%clk 0:02:03]}  f4 {[%clk 0:02:10]} 19. f3 {[%clk 0:02:02]}  Rab8 {[%clk 0:02:03]} 20. Qc3 {[%clk 0:02:01]}  Rf6 {[%clk 0:02:02]} 21. Nb4 {[%clk 0:02:01]}  Rh6 {[%clk 0:01:59]} 22. Nd5 {[%clk 0:02:00]}  Qf7 {[%clk 0:01:59]} 23. Rf2 {[%clk 0:01:22]}  Qh5 {[%clk 0:01:56]} 24. h3 {[%clk 0:00:54]}  Bxh3 {[%clk 0:01:51]} 25. gxh3 {[%clk 0:00:35]}  Qxh3 {[%clk 0:01:52]} 26. Rg2 {[%clk 0:00:25]}  Qh1+ {[%clk 0:01:50]} 27. Kf2 {[%clk 0:00:25]}  Bh4+ {[%clk 0:01:51]} 0-1


[Site "https://www.chess.com"]

[Event "Titled Tuesday Blitz November 08 Early 2022"]
[White "Onslow, Alfie"]
[Black "Volkov, Maksim"]
[WhiteFideId "436976"]
[BlackFideId "54123070"]
[WhiteElo "2015"]
[BlackElo "2257"]
[Result "0-1"]
[Round "01"]
[TimeControl "180+1"]
[Date "2022.11.09"]
[WhiteClock "0:00:09"]
[BlackClock "0:00:09"]

1. e4 {[%clk 0:02:56]}  c5 {[%clk 0:02:51]} 2. Nc3 {[%clk 0:02:53]}  d6 {[%clk 0:02:47]} 3. d4 {[%clk 0:02:51]}  cxd4 {[%clk 0:02:47]} 4. Qxd4 {[%clk 0:02:50]}  Nc6 {[%clk 0:02:47]} 5. Qd2 {[%clk 0:02:44]}  g6 {[%clk 0:02:47]} 6. b3 {[%clk 0:02:44]}  Bh6 {[%clk 0:02:46]} 7. f4 {[%clk 0:02:43]}  e5 {[%clk 0:02:44]} 8. Nge2 {[%clk 0:02:31]}  Nf6 {[%clk 0:02:43]} 9. Bb2 {[%clk 0:02:30]}  O-O {[%clk 0:02:42]} 10. O-O-O {[%clk 0:02:29]}  Bg4 {[%clk 0:02:41]} 11. Kb1 {[%clk 0:02:06]}  Nd4 {[%clk 0:02:29]} 12. Nxd4 {[%clk 0:01:49]}  Bxd1 {[%clk 0:02:28]} 13. Qxd1 {[%clk 0:01:50]}  exd4 {[%clk 0:02:27]} 14. Qxd4 {[%clk 0:01:51]}  Bxf4 {[%clk 0:02:23]} 15. Bc4 {[%clk 0:01:41]}  Be5 {[%clk 0:02:21]} 16. Qe3 {[%clk 0:01:40]}  a6 {[%clk 0:02:15]} 17. h4 {[%clk 0:01:39]}  b5 {[%clk 0:02:14]} 18. Bd5 {[%clk 0:01:37]}  Nxd5 {[%clk 0:02:13]} 19. Nxd5 {[%clk 0:01:34]}  h5 {[%clk 0:01:53]} 20. g4 {[%clk 0:01:31]}  hxg4 {[%clk 0:01:08]} 21. h5 {[%clk 0:01:31]}  Kg7 {[%clk 0:01:05]} 22. hxg6 {[%clk 0:00:43]}  Rh8 {[%clk 0:01:05]} 23. Rg1 {[%clk 0:00:41]}  fxg6 {[%clk 0:01:02]} 24. Qf4 {[%clk 0:00:26]}  Qe8 {[%clk 0:00:41]} 25. Qxg4 {[%clk 0:00:21]}  Ra7 {[%clk 0:00:38]} 26. Nf4 {[%clk 0:00:18]}  Rh6 {[%clk 0:00:35]} 27. Nh5+ {[%clk 0:00:18]}  Kh7 {[%clk 0:00:33]} 28. Nf6+ {[%clk 0:00:15]}  Bxf6 {[%clk 0:00:32]} 29. Bxf6 {[%clk 0:00:16]}  Qd7 {[%clk 0:00:21]} 30. Qg5 {[%clk 0:00:16]}  Qe6 {[%clk 0:00:20]} 31. Bb2 {[%clk 0:00:14]}  Rf7 {[%clk 0:00:20]} 32. Qd8 {[%clk 0:00:14]}  Rg7 {[%clk 0:00:12]} 33. Rf1 {[%clk 0:00:14]}  Qg8 {[%clk 0:00:10]} 34. Qf6 {[%clk 0:00:12]}  Rh5 {[%clk 0:00:10]} 35. Qxd6 {[%clk 0:00:10]}  Rf7 {[%clk 0:00:09]} 36. Rg1 {[%clk 0:00:09]}  Rh4 {[%clk 0:00:06]} 37. e5 {[%clk 0:00:09]}  Qf8 {[%clk 0:00:06]} 38. a3 {[%clk 0:00:07]}  Qxd6 {[%clk 0:00:05]} 39. exd6 {[%clk 0:00:07]}  Rd7 {[%clk 0:00:06]} 40. Rd1 {[%clk 0:00:06]}  g5 {[%clk 0:00:06]} 41. Be5 {[%clk 0:00:06]}  g4 {[%clk 0:00:06]} 42. Bf6 {[%clk 0:00:06]}  Rh6 {[%clk 0:00:05]} 43. Be7 {[%clk 0:00:06]}  g3 {[%clk 0:00:04]} 44. Rg1 {[%clk 0:00:06]}  Rg6 {[%clk 0:00:05]} 45. Kc1 {[%clk 0:00:07]}  Kh6 {[%clk 0:00:05]} 46. Kd2 {[%clk 0:00:07]}  Kh5 {[%clk 0:00:06]} 47. Ke3 {[%clk 0:00:08]}  Kg4 {[%clk 0:00:06]} 48. Ke4 {[%clk 0:00:07]}  Kh3 {[%clk 0:00:06]} 49. Ke5 {[%clk 0:00:05]}  g2 {[%clk 0:00:05]} 50. c4 {[%clk 0:00:05]}  bxc4 {[%clk 0:00:05]} 51. bxc4 {[%clk 0:00:05]}  Kh2 {[%clk 0:00:06]} 52. Rxg2+ {[%clk 0:00:04]}  Rxg2 {[%clk 0:00:05]} 53. c5 {[%clk 0:00:05]}  Re2+ {[%clk 0:00:05]} 54. Kd5 {[%clk 0:00:05]}  Rd2+ {[%clk 0:00:04]} 55. Ke6 {[%clk 0:00:05]}  Ra7 {[%clk 0:00:03]} 56. c6 {[%clk 0:00:06]}  Rc2 {[%clk 0:00:03]} 57. c7 {[%clk 0:00:06]}  Raxc7 {[%clk 0:00:03]} 58. dxc7 {[%clk 0:00:06]}  Rxc7 {[%clk 0:00:04]} 59. Bb4 {[%clk 0:00:05]}  Kg2 {[%clk 0:00:03]} 60. Kd6 {[%clk 0:00:05]}  Rc2 {[%clk 0:00:02]} 61. Bc5 {[%clk 0:00:05]}  Kf3 {[%clk 0:00:03]} 62. Kc6 {[%clk 0:00:05]}  Rb2 {[%clk 0:00:03]} 63. Bb4 {[%clk 0:00:04]}  Re2 {[%clk 0:00:02]} 64. Kb6 {[%clk 0:00:05]}  Re6+ {[%clk 0:00:03]} 65. Ka5 {[%clk 0:00:05]}  Ke4 {[%clk 0:00:03]} 66. Bc5 {[%clk 0:00:05]}  Kd5 {[%clk 0:00:04]} 67. Bb4 {[%clk 0:00:06]}  Kc4 {[%clk 0:00:04]} 68. Ka4 {[%clk 0:00:06]}  Re5 {[%clk 0:00:04]} 69. Ba5 {[%clk 0:00:05]}  Rb5 {[%clk 0:00:04]} 70. Bb4 {[%clk 0:00:05]}  Kd5 {[%clk 0:00:04]} 71. Ba5 {[%clk 0:00:05]}  Kc6 {[%clk 0:00:04]} 72. Bb4 {[%clk 0:00:06]}  Kb6 {[%clk 0:00:05]} 73. Bc3 {[%clk 0:00:06]}  a5 {[%clk 0:00:05]} 74. Bd4+ {[%clk 0:00:06]}  Ka6 {[%clk 0:00:06]} 75. Bc3 {[%clk 0:00:06]}  Rb7 {[%clk 0:00:06]} 76. Bd4 {[%clk 0:00:07]}  Rd7 {[%clk 0:00:06]} 77. Bc3 {[%clk 0:00:07]}  Rd5 {[%clk 0:00:06]} 78. Kb3 {[%clk 0:00:07]}  Kb5 {[%clk 0:00:06]} 79. a4+ {[%clk 0:00:07]}  Ka6 {[%clk 0:00:07]} 80. Kc4 {[%clk 0:00:07]}  Rh5 {[%clk 0:00:07]} 81. Bd4 {[%clk 0:00:08]}  Rh4 {[%clk 0:00:07]} 82. Kc5 {[%clk 0:00:08]}  Rg4 {[%clk 0:00:07]} 83. Kc4 {[%clk 0:00:08]}  Rg2 {[%clk 0:00:06]} 84. Kb3 {[%clk 0:00:08]}  Rd2 {[%clk 0:00:05]} 85. Bc3 {[%clk 0:00:08]}  Re2 {[%clk 0:00:06]} 86. Kc4 {[%clk 0:00:08]}  Ra2 {[%clk 0:00:06]} 87. Kb3 {[%clk 0:00:08]}  Rh2 {[%clk 0:00:07]} 88. Kc4 {[%clk 0:00:09]}  Rh3 {[%clk 0:00:07]} 89. Kb3 {[%clk 0:00:09]}  Kb6 {[%clk 0:00:07]} 90. Kc4 {[%clk 0:00:10]}  Rh4+ {[%clk 0:00:07]} 91. Bd4+ {[%clk 0:00:10]}  Kc6 {[%clk 0:00:08]} 92. Kd3 {[%clk 0:00:03]}  Kd5 {[%clk 0:00:08]} 93. Bb6 {[%clk 0:00:03]}  Rxa4 {[%clk 0:00:09]} 94. Kc3 {[%clk 0:00:03]}  Kc6 {[%clk 0:00:09]} 95. Bd4 {[%clk 0:00:03]}  Kb5 {[%clk 0:00:09]} 96. Kd3 {[%clk 0:00:03]}  Rb4 {[%clk 0:00:08]} 97. Be5 {[%clk 0:00:03]}  Rb3+ {[%clk 0:00:07]} 98. Bc3 {[%clk 0:00:04]}  a4 {[%clk 0:00:07]} 99. Kc2 {[%clk 0:00:05]}  Kc4 {[%clk 0:00:07]} 100. Bb2 {[%clk 0:00:04]}  a3 {[%clk 0:00:07]} 101. Ba1 {[%clk 0:00:05]}  a2 {[%clk 0:00:07]} 102. Kd2 {[%clk 0:00:05]}  Rb1 {[%clk 0:00:07]} 103. Kc2 {[%clk 0:00:05]}  Rxa1 {[%clk 0:00:07]} 104. Kb2 {[%clk 0:00:06]}  Rh1 {[%clk 0:00:07]} 105. Kxa2 {[%clk 0:00:07]}  Rh2+ {[%clk 0:00:08]} 106. Ka1 {[%clk 0:00:08]}  Kb3 {[%clk 0:00:08]} 107. Kb1 {[%clk 0:00:09]}  Rh1# {[%clk 0:00:09]} 0-1


[Site "https://www.chess.com"]

[Event "Titled Tuesday Blitz November 08 Early 2022"]
[White "Orozbaev, Eldiar"]
[Black "Pourkashiyan, Atousa"]
[WhiteFideId "13802240"]
[BlackFideId "12502014"]
[WhiteElo "2244"]
[BlackElo "2247"]
[Result "1/2-1/2"]
[Round "01"]
[TimeControl "180+1"]
[Date "2022.11.09"]
[WhiteClock "0:00:07"]
[BlackClock "0:00:05"]

1. e4 {[%clk 0:02:34]}  c5 {[%clk 0:02:58]} 2. c3 {[%clk 0:02:34]}  Nf6 {[%clk 0:02:57]} 3. e5 {[%clk 0:02:34]}  Nd5 {[%clk 0:02:58]} 4. Nf3 {[%clk 0:02:35]}  e6 {[%clk 0:02:58]} 5. d4 {[%clk 0:02:35]}  cxd4 {[%clk 0:02:59]} 6. cxd4 {[%clk 0:02:36]}  d6 {[%clk 0:03:00]} 7. Nc3 {[%clk 0:02:36]}  Nxc3 {[%clk 0:03:00]} 8. bxc3 {[%clk 0:02:37]}  Qc7 {[%clk 0:03:00]} 9. Bd2 {[%clk 0:02:34]}  Nd7 {[%clk 0:03:01]} 10. Bd3 {[%clk 0:02:32]}  dxe5 {[%clk 0:03:00]} 11. O-O {[%clk 0:02:33]}  Be7 {[%clk 0:02:57]} 12. Qe2 {[%clk 0:02:32]}  exd4 {[%clk 0:02:55]} 13. cxd4 {[%clk 0:02:32]}  a6 {[%clk 0:02:55]} 14. Rac1 {[%clk 0:02:32]}  Qd6 {[%clk 0:02:52]} 15. g3 {[%clk 0:02:21]}  O-O {[%clk 0:02:49]} 16. Bf4 {[%clk 0:02:21]}  Qa3 {[%clk 0:02:49]} 17. Ne5 {[%clk 0:01:44]}  Nxe5 {[%clk 0:02:47]} 18. dxe5 {[%clk 0:01:44]}  Bd7 {[%clk 0:02:44]} 19. Rc7 {[%clk 0:01:39]}  Bb5 {[%clk 0:02:37]} 20. Bxb5 {[%clk 0:01:27]}  axb5 {[%clk 0:02:38]} 21. Qxb5 {[%clk 0:01:28]}  Ra7 {[%clk 0:02:19]} 22. Be3 {[%clk 0:01:26]}  Ra5 {[%clk 0:02:08]} 23. Qxb7 {[%clk 0:01:24]}  Bc5 {[%clk 0:02:08]} 24. Bxc5 {[%clk 0:01:02]}  Rxc5 {[%clk 0:02:09]} 25. Rxc5 {[%clk 0:01:00]}  Qxc5 {[%clk 0:02:10]} 26. Qe4 {[%clk 0:01:00]}  Qa3 {[%clk 0:02:06]} 27. Qc2 {[%clk 0:00:57]}  Ra8 {[%clk 0:02:02]} 28. Rd1 {[%clk 0:00:56]}  g6 {[%clk 0:02:03]} 29. Rd2 {[%clk 0:00:51]}  Rb8 {[%clk 0:01:50]} 30. h4 {[%clk 0:00:50]}  Qa5 {[%clk 0:01:45]} 31. Re2 {[%clk 0:00:49]}  Qa3 {[%clk 0:01:34]} 32. h5 {[%clk 0:00:50]}  Qb4 {[%clk 0:01:24]} 33. h6 {[%clk 0:00:43]}  Qf8 {[%clk 0:01:10]} 34. Qd2 {[%clk 0:00:39]}  Rb1+ {[%clk 0:01:05]} 35. Kg2 {[%clk 0:00:33]}  Qa8+ {[%clk 0:01:04]} 36. f3 {[%clk 0:00:33]}  Qb8 {[%clk 0:00:53]} 37. Qf4 {[%clk 0:00:32]}  Qb6 {[%clk 0:00:37]} 38. Rf2 {[%clk 0:00:27]}  Rb2 {[%clk 0:00:30]} 39. Rxb2 {[%clk 0:00:26]}  Qxb2+ {[%clk 0:00:31]} 40. Kh3 {[%clk 0:00:26]}  Qb1 {[%clk 0:00:24]} 41. Kh2 {[%clk 0:00:12]}  Qc2+ {[%clk 0:00:22]} 42. Kh3 {[%clk 0:00:12]}  Qd1 {[%clk 0:00:22]} 43. Qh4 {[%clk 0:00:07]}  Qh1+ {[%clk 0:00:14]} 44. Kg4 {[%clk 0:00:07]}  Qd1 {[%clk 0:00:14]} 45. Qf6 {[%clk 0:00:07]}  Kf8 {[%clk 0:00:08]} 46. Qg7+ {[%clk 0:00:05]}  Ke7 {[%clk 0:00:08]} 47. Qf6+ {[%clk 0:00:04]}  Ke8 {[%clk 0:00:07]} 48. Qh8+ {[%clk 0:00:05]}  Ke7 {[%clk 0:00:07]} 49. Qxh7 {[%clk 0:00:06]}  Qd4+ {[%clk 0:00:06]} 50. Kh3 {[%clk 0:00:06]}  Qg1 {[%clk 0:00:05]} 51. Kg4 {[%clk 0:00:04]}  Qd4+ {[%clk 0:00:05]} 52. f4 {[%clk 0:00:04]}  Qd1+ {[%clk 0:00:05]} 53. Kh3 {[%clk 0:00:04]}  Qh5+ {[%clk 0:00:04]} 54. Kg2 {[%clk 0:00:05]}  Qe2+ {[%clk 0:00:04]} 55. Kg1 {[%clk 0:00:05]}  Qe1+ {[%clk 0:00:04]} 56. Kh2 {[%clk 0:00:06]}  Qe2+ {[%clk 0:00:04]} 57. Kh1 {[%clk 0:00:06]}  Qe1+ {[%clk 0:00:04]} 58. Kg2 {[%clk 0:00:06]}  Qe2+ {[%clk 0:00:04]} 59. Kh3 {[%clk 0:00:07]}  Qh5+ {[%clk 0:00:05]} 60. Kg2 {[%clk 0:00:07]}  Qe2+ {[%clk 0:00:05]} 1/2-1/2


[Site "https://www.chess.com"]